[Event "Live Chess"]
[Site "Chess.com"]
[Date "2024.06.02"]
[Round "-"]
[White "upoe610"]
[Black "lateforthesky"]
[Result "1-0"]
[WhiteElo "2141"]
[BlackElo "2061"]
[TimeControl "300"]
[EndTime "4:32:00 PDT"]
[Termination "upoe610 won on time"]

1. c4 {[%clk 0:04:54.6]} 1... g6 {[%clk 0:04:58]} 2. g3 {[%clk 0:04:49.5]} 2...
Bg7 {[%clk 0:04:57.3]} 3. Bg2 {[%clk 0:04:48.1]} 3... d6 {[%clk 0:04:56.8]} 4.
Nc3 {[%clk 0:04:45.6]} 4... e5 {[%clk 0:04:55.3]} 5. d3 {[%clk 0:04:39.8]} 5...
Nc6 {[%clk 0:04:54.6]} 6. Nf3 {[%clk 0:04:38.8]} 6... Nf6 {[%clk 0:04:53.5]} 7.
O-O {[%clk 0:04:38.3]} 7... O-O {[%clk 0:04:53]} 8. Rb1 {[%clk 0:04:37.7]} 8...
a5 {[%clk 0:04:50.6]} 9. a3 {[%clk 0:04:36.6]} 9... Re8 {[%clk 0:04:49.8]} 10.
b4 {[%clk 0:04:35.5]} 10... axb4 {[%clk 0:04:47.8]} 11. axb4 {[%clk 0:04:35.4]}
11... e4 {[%clk 0:04:46.7]} 12. Nd2 {[%clk 0:04:30.1]} 12... exd3 {[%clk
0:04:37.4]} 13. exd3 {[%clk 0:04:29]} 13... Bf5 {[%clk 0:04:22.1]} 14. Nde4
{[%clk 0:04:19.1]} 14... Nxe4 {[%clk 0:04:16.3]} 15. Nxe4 {[%clk 0:04:17.8]}
15... Nd4 {[%clk 0:03:58.5]} 16. Bb2 {[%clk 0:04:12.4]} 16... Qd7 {[%clk
0:03:56.4]} 17. Re1 {[%clk 0:04:07.5]} 17... c6 {[%clk 0:03:50.1]} 18. b5 {[%clk
0:04:02.9]} 18... Ra2 {[%clk 0:03:24.7]} 19. bxc6 {[%clk 0:03:57.4]} 19... bxc6
{[%clk 0:03:22.4]} 20. Bxd4 {[%clk 0:03:54.4]} 20... Bxd4 {[%clk 0:03:20.4]} 21.
Qb3 {[%clk 0:03:54]} 21... Qa7 {[%clk 0:03:06.3]} 22. Nf6+ {[%clk 0:03:44.4]}
22... Bxf6 {[%clk 0:03:01.5]} 23. Rxe8+ {[%clk 0:03:42.9]} 23... Kg7 {[%clk
0:03:01.1]} 24. Rf1 {[%clk 0:03:37]} 24... Bd4 {[%clk 0:02:58.8]} 25. Qb8 {[%clk
0:03:32.2]} 25... Qxb8 {[%clk 0:02:42.2]} 26. Rxb8 {[%clk 0:03:32.1]} 26... Bxd3
{[%clk 0:02:40.8]} 27. Rd1 {[%clk 0:03:20.2]} 27... Bxf2+ {[%clk 0:02:31.5]} 28.
Kh1 {[%clk 0:03:19]} 28... Bxc4 {[%clk 0:02:28.5]} 29. Bxc6 {[%clk 0:03:13.2]}
29... Bc5 {[%clk 0:02:16.5]} 30. Bd5 {[%clk 0:03:08.1]} 30... Bxd5+ {[%clk
0:02:14.9]} 31. Rxd5 {[%clk 0:03:07]} 31... h5 {[%clk 0:02:10.3]} 32. Rb1 {[%clk
0:03:01.7]} 32... h4 {[%clk 0:02:00.7]} 33. gxh4 {[%clk 0:02:57.9]} 33... Ra4
{[%clk 0:01:59.4]} 34. h5 {[%clk 0:02:56.5]} 34... gxh5 {[%clk 0:01:57.4]} 35.
Rxh5 {[%clk 0:02:54.7]} 35... Ra2 {[%clk 0:01:54.6]} 36. Rf1 {[%clk 0:02:52.3]}
36... Rf2 {[%clk 0:01:41.7]} 37. Rxf2 {[%clk 0:02:43]} 37... Bxf2 {[%clk
0:01:39.7]} 38. Kg2 {[%clk 0:02:42.9]} 38... Bc5 {[%clk 0:01:38]} 39. Kf3 {[%clk
0:02:40.9]} 39... Kg6 {[%clk 0:01:36.3]} 40. Rd5 {[%clk 0:02:39.3]} 40... f6
{[%clk 0:01:29.4]} 41. Kg4 {[%clk 0:02:37]} 41... Bb4 {[%clk 0:01:26.5]} 42. h4
{[%clk 0:02:36.2]} 42... Bc5 {[%clk 0:01:24.8]} 43. h5+ {[%clk 0:02:35.4]} 43...
Kh6 {[%clk 0:01:22.9]} 44. Rf5 {[%clk 0:02:34.4]} 44... Bd4 {[%clk 0:01:20.4]}
45. Rf4 {[%clk 0:02:29.8]} 45... Be5 {[%clk 0:01:19.2]} 46. Rf1 {[%clk
0:02:29.7]} 46... d5 {[%clk 0:01:16.7]} 47. Kf5 {[%clk 0:02:29.1]} 47... d4
{[%clk 0:01:11.9]} 48. Ke4 {[%clk 0:02:28.2]} 48... Kxh5 {[%clk 0:01:09.3]} 49.
Kf5 {[%clk 0:02:20.6]} 49... Kh4 {[%clk 0:01:05.4]} 50. Rf3 {[%clk 0:02:14.5]}
50... Bg3 {[%clk 0:00:40.7]} 51. Ra3 {[%clk 0:01:59.7]} 51... Kh3 {[%clk
0:00:35.9]} 52. Ke4 {[%clk 0:01:54.6]} 52... Kg2 {[%clk 0:00:30.1]} 53. Kxd4
{[%clk 0:01:53]} 53... Be5+ {[%clk 0:00:29.1]} 54. Ke4 {[%clk 0:01:52.3]} 54...
Kf2 {[%clk 0:00:22.9]} 55. Ra2+ {[%clk 0:01:51.2]} 55... Kg3 {[%clk 0:00:21.8]}
56. Ra3+ {[%clk 0:01:49.6]} 56... Kf2 {[%clk 0:00:20.8]} 57. Rf3+ {[%clk
0:01:48.1]} 57... Ke2 {[%clk 0:00:19.7]} 58. Rh3 {[%clk 0:01:41.6]} 58... Kd2
{[%clk 0:00:18.9]} 59. Rh8 {[%clk 0:01:37.5]} 59... Kc2 {[%clk 0:00:17.8]} 60.
Rc8+ {[%clk 0:01:35.8]} 60... Kb3 {[%clk 0:00:16.6]} 61. Kd3 {[%clk 0:01:34.3]}
61... Kb4 {[%clk 0:00:15.3]} 62. Rc6 {[%clk 0:01:31.7]} 62... Kb5 {[%clk
0:00:14.4]} 63. Rc1 {[%clk 0:01:26.3]} 63... Kb6 {[%clk 0:00:13.4]} 64. Kc4
{[%clk 0:01:25.1]} 64... Kc7 {[%clk 0:00:12.1]} 65. Kd5+ {[%clk 0:01:24.2]}
65... Kd7 {[%clk 0:00:11.6]} 66. Rh1 {[%clk 0:01:22]} 66... Kc7 {[%clk 0:00:10]}
67. Rh7+ {[%clk 0:01:18.7]} 67... Kb6 {[%clk 0:00:09.2]} 68. Rh8 {[%clk
0:01:14.8]} 68... Kb5 {[%clk 0:00:08.3]} 69. Rc8 {[%clk 0:01:09.3]} 69... Kb4
{[%clk 0:00:07.2]} 70. Rc4+ {[%clk 0:01:09]} 70... Kb5 {[%clk 0:00:06.2]} 71.
Re4 {[%clk 0:01:08.8]} 71... Ka5 {[%clk 0:00:05]} 72. Kc5 {[%clk 0:01:06.5]}
72... Bb2 {[%clk 0:00:02.4]} 73. Re2 {[%clk 0:01:00.2]} 1-0

[Event "Live Chess"]
[Site "Chess.com"]
[Date "2024.06.02"]
[Round "-"]
[White "Tatarinov_Maxim"]
[Black "r0ad_t0-gm"]
[Result "0-1"]
[WhiteElo "2286"]
[BlackElo "2279"]
[TimeControl "300"]
[EndTime "4:32:05 PDT"]
[Termination "r0ad_t0-gm won on time"]

1. Nf3 {[%clk 0:04:55]} 1... Nf6 {[%clk 0:04:57.2]} 2. g3 {[%clk 0:04:54.3]}
2... g6 {[%clk 0:04:56.4]} 3. Bg2 {[%clk 0:04:53.8]} 3... Bg7 {[%clk 0:04:56.3]}
4. O-O {[%clk 0:04:53]} 4... O-O {[%clk 0:04:56.2]} 5. c4 {[%clk 0:04:52.1]}
5... c5 {[%clk 0:04:55.8]} 6. Nc3 {[%clk 0:04:50.8]} 6... Nc6 {[%clk 0:04:55.3]}
7. d4 {[%clk 0:04:50.3]} 7... d6 {[%clk 0:04:54.5]} 8. d5 {[%clk 0:04:49.4]}
8... Na5 {[%clk 0:04:54]} 9. Nd2 {[%clk 0:04:48.7]} 9... e6 {[%clk 0:04:53.5]}
10. dxe6 {[%clk 0:04:46.5]} 10... Bxe6 {[%clk 0:04:53.4]} 11. Nd5 {[%clk
0:04:35.2]} 11... Bxd5 {[%clk 0:04:44.7]} 12. cxd5 {[%clk 0:04:32.2]} 12... b5
{[%clk 0:04:43.8]} 13. Qc2 {[%clk 0:04:26.3]} 13... Nd7 {[%clk 0:04:41.5]} 14.
Rd1 {[%clk 0:04:19.3]} 14... Ne5 {[%clk 0:04:40.1]} 15. Nf3 {[%clk 0:04:18.1]}
15... Nec4 {[%clk 0:04:36.9]} 16. Rb1 {[%clk 0:04:12.2]} 16... Re8 {[%clk
0:04:32.8]} 17. b3 {[%clk 0:04:08.9]} 17... Nb6 {[%clk 0:04:19.4]} 18. Bb2
{[%clk 0:04:04.8]} 18... Qe7 {[%clk 0:04:13.1]} 19. Bxg7 {[%clk 0:03:57.1]}
19... Kxg7 {[%clk 0:04:13]} 20. Qc3+ {[%clk 0:03:56]} 20... Kg8 {[%clk
0:04:12.2]} 21. Qxa5 {[%clk 0:03:55.2]} 21... Qxe2 {[%clk 0:04:11.4]} 22. Qd2
{[%clk 0:03:52.5]} 22... Qe7 {[%clk 0:04:09.9]} 23. Re1 {[%clk 0:03:51.4]} 23...
Qd7 {[%clk 0:04:08.6]} 24. Rxe8+ {[%clk 0:03:50.3]} 24... Rxe8 {[%clk
0:04:08.5]} 25. Re1 {[%clk 0:03:46.1]} 25... a6 {[%clk 0:03:54.4]} 26. Rxe8+
{[%clk 0:03:43]} 26... Qxe8 {[%clk 0:03:54.3]} 27. Ng5 {[%clk 0:03:38]} 27... h6
{[%clk 0:03:52.4]} 28. Ne4 {[%clk 0:03:37]} 28... Qe5 {[%clk 0:03:48]} 29. Qc3
{[%clk 0:03:31.8]} 29... Nxd5 {[%clk 0:03:24.4]} 30. Qxe5 {[%clk 0:03:27.4]}
30... dxe5 {[%clk 0:03:24.3]} 31. Nxc5 {[%clk 0:03:26.8]} 31... Nb4 {[%clk
0:03:23.1]} 32. a3 {[%clk 0:03:24.5]} 32... Nc2 {[%clk 0:03:22.2]} 33. Nxa6
{[%clk 0:03:22.9]} 33... Nxa3 {[%clk 0:03:20.8]} 34. Bc6 {[%clk 0:03:20.9]}
34... Kf8 {[%clk 0:03:15.3]} 35. Nc7 {[%clk 0:03:19.4]} 35... b4 {[%clk
0:03:14.2]} 36. Nd5 {[%clk 0:03:18.2]} 36... Nc2 {[%clk 0:03:12.5]} 37. Bb5
{[%clk 0:03:12.1]} 37... h5 {[%clk 0:02:59.2]} 38. Kf1 {[%clk 0:03:10.4]} 38...
Nd4 {[%clk 0:02:45.1]} 39. Bc4 {[%clk 0:03:07.4]} 39... Nc6 {[%clk 0:02:44.2]}
40. Ke2 {[%clk 0:03:02.1]} 40... f5 {[%clk 0:02:31.7]} 41. Kd3 {[%clk 0:03:02]}
41... Kg7 {[%clk 0:02:29.7]} 42. Bb5 {[%clk 0:02:56.4]} 42... Na5 {[%clk
0:02:21.4]} 43. Ba4 {[%clk 0:02:52.1]} 43... g5 {[%clk 0:02:16.4]} 44. Nxb4
{[%clk 0:02:50.1]} 44... Kf6 {[%clk 0:02:14.9]} 45. Nd5+ {[%clk 0:02:44.7]}
45... Ke6 {[%clk 0:02:14.2]} 46. Ne3 {[%clk 0:02:39.6]} 46... f4 {[%clk
0:02:08]} 47. Nc4 {[%clk 0:02:32]} 47... Nb7 {[%clk 0:02:03.1]} 48. b4 {[%clk
0:02:30.5]} 48... Kd5 {[%clk 0:02:01.5]} 49. Bb3 {[%clk 0:02:23.5]} 49... e4+
{[%clk 0:01:59.7]} 50. Kc3 {[%clk 0:02:22.1]} 50... Nd8 {[%clk 0:01:50.5]} 51.
Bd1 {[%clk 0:02:00.3]} 51... h4 {[%clk 0:01:48.9]} 52. gxh4 {[%clk 0:01:57.2]}
52... gxh4 {[%clk 0:01:48.8]} 53. Bg4 {[%clk 0:01:53.4]} 53... Nf7 {[%clk
0:01:39.8]} 54. Nb6+ {[%clk 0:01:30.2]} 54... Kc6 {[%clk 0:01:31.7]} 55. Nd7
{[%clk 0:01:25.4]} 55... Kd5 {[%clk 0:01:24.3]} 56. b5 {[%clk 0:01:21.7]} 56...
Nd6 {[%clk 0:01:12.9]} 57. Kb4 {[%clk 0:01:18.3]} 57... Kd4 {[%clk 0:00:58.2]}
58. b6 {[%clk 0:01:08.6]} 58... f3 {[%clk 0:00:30.7]} 59. Nc5 {[%clk 0:00:58.6]}
59... e3 {[%clk 0:00:18.9]} 60. fxe3+ {[%clk 0:00:17.5]} 60... Kxe3 {[%clk
0:00:18.8]} 61. b7 {[%clk 0:00:16]} 61... Nxb7 {[%clk 0:00:17.6]} 62. Nxb7
{[%clk 0:00:15.9]} 62... f2 {[%clk 0:00:17]} 63. Bh3 {[%clk 0:00:15.4]} 63...
Ke2 {[%clk 0:00:16.5]} 64. Nd6 {[%clk 0:00:13.2]} 64... f1=Q {[%clk 0:00:15.8]}
65. Bxf1+ {[%clk 0:00:12.1]} 65... Kxf1 {[%clk 0:00:15.7]} 66. Nf5 {[%clk
0:00:11.3]} 66... h3 {[%clk 0:00:15.3]} 67. Nh4 {[%clk 0:00:09.5]} 67... Kg1
{[%clk 0:00:14.1]} 68. Kc3 {[%clk 0:00:09.4]} 68... Kxh2 {[%clk 0:00:13.5]} 69.
Kd3 {[%clk 0:00:09.2]} 69... Kg3 {[%clk 0:00:13]} 70. Nf5+ {[%clk 0:00:08.9]}
70... Kf4 {[%clk 0:00:12.1]} 71. Ne3 {[%clk 0:00:07.8]} 71... h2 {[%clk
0:00:10.8]} 72. Ke2 {[%clk 0:00:06.7]} 72... h1=Q {[%clk 0:00:10]} 73. Nf1
{[%clk 0:00:06.6]} 73... Qf3+ {[%clk 0:00:09]} 74. Ke1 {[%clk 0:00:05.8]} 74...
Qe4+ {[%clk 0:00:08.1]} 75. Kf2 {[%clk 0:00:04.6]} 75... Qc2+ {[%clk 0:00:06.8]}
76. Ke1 {[%clk 0:00:03.4]} 76... Kf3 {[%clk 0:00:05]} 77. Nd2+ {[%clk
0:00:02.7]} 77... Ke3 {[%clk 0:00:03.8]} 78. Nf1+ {[%clk 0:00:02.3]} 78... Kd3
{[%clk 0:00:03]} 79. Ng3 {[%clk 0:00:01]} 79... Qg2 {[%clk 0:00:00.5]} 0-1

[Event "Live Chess"]
[Site "Chess.com"]
[Date "2024.06.02"]
[Round "-"]
[White "f4nomore"]
[Black "ACM42"]
[Result "0-1"]
[WhiteElo "1275"]
[BlackElo "2176"]
[TimeControl "300"]
[EndTime "4:32:11 PDT"]
[Termination "ACM42 won by resignation"]

1. c3 {[%clk 0:04:54.9]} 1... Nf6 {[%clk 0:04:59]} 2. d4 {[%clk 0:04:53.5]} 2...
b6 {[%clk 0:04:58.3]} 3. Nf3 {[%clk 0:04:51.7]} 3... Bb7 {[%clk 0:04:57.7]} 4.
e3 {[%clk 0:04:50.2]} 4... g6 {[%clk 0:04:56.4]} 5. Be2 {[%clk 0:04:49.1]} 5...
Bg7 {[%clk 0:04:55.9]} 6. O-O {[%clk 0:04:47.8]} 6... O-O {[%clk 0:04:55.5]} 7.
Na3 {[%clk 0:04:46.8]} 7... d6 {[%clk 0:04:54.9]} 8. Nc2 {[%clk 0:04:45.6]} 8...
c5 {[%clk 0:04:53.3]} 9. Bd2 {[%clk 0:04:41.2]} 9... Nbd7 {[%clk 0:04:52.5]} 10.
b4 {[%clk 0:04:39.3]} 10... Qc7 {[%clk 0:04:50.2]} 11. bxc5 {[%clk 0:04:37.1]}
11... bxc5 {[%clk 0:04:48.4]} 12. dxc5 {[%clk 0:04:33.4]} 12... Nxc5 {[%clk
0:04:47.1]} 13. Rb1 {[%clk 0:04:30.3]} 13... Be4 {[%clk 0:04:40.5]} 14. Be1
{[%clk 0:04:12]} 14... Na4 {[%clk 0:04:30.7]} 15. Nd2 {[%clk 0:03:55.7]} 15...
Nxc3 {[%clk 0:04:27.8]} 16. Nxe4 {[%clk 0:03:50.6]} 16... Nxd1 {[%clk 0:04:27]}
17. Bxd1 {[%clk 0:03:46.3]} 17... Nxe4 {[%clk 0:04:25.6]} 18. Nd4 {[%clk
0:03:44]} 18... Rfc8 {[%clk 0:04:20.1]} 19. Bf3 {[%clk 0:03:41.8]} 19... d5
{[%clk 0:04:17.4]} 20. Bb4 {[%clk 0:03:33.2]} 20... Rab8 {[%clk 0:04:15.2]} 21.
a3 {[%clk 0:03:29.5]} 21... a5 {[%clk 0:04:13.6]} 0-1

[Event "Live Chess"]
[Site "Chess.com"]
[Date "2024.06.02"]
[Round "-"]
[White "Dhaydon19"]
[Black "RichardABates"]
[Result "1/2-1/2"]
[WhiteElo "2642"]
[BlackElo "2334"]
[TimeControl "300"]
[EndTime "4:32:18 PDT"]
[Termination "Game drawn - insufficient material"]

1. d4 {[%clk 0:04:56.5]} 1... Nf6 {[%clk 0:04:57.3]} 2. Nf3 {[%clk 0:04:55.6]}
2... e6 {[%clk 0:04:55.7]} 3. c3 {[%clk 0:04:54.4]} 3... c5 {[%clk 0:04:53.7]}
4. g3 {[%clk 0:04:53]} 4... Nc6 {[%clk 0:04:51.6]} 5. Bg2 {[%clk 0:04:51.5]}
5... cxd4 {[%clk 0:04:48.7]} 6. cxd4 {[%clk 0:04:50]} 6... d5 {[%clk 0:04:47.8]}
7. Nc3 {[%clk 0:04:49.7]} 7... Bd6 {[%clk 0:04:46.5]} 8. O-O {[%clk 0:04:49.2]}
8... O-O {[%clk 0:04:45.2]} 9. Bf4 {[%clk 0:04:48.6]} 9... Bxf4 {[%clk
0:04:43.1]} 10. gxf4 {[%clk 0:04:48.3]} 10... Ne4 {[%clk 0:04:37.5]} 11. Rc1
{[%clk 0:04:44.6]} 11... Bd7 {[%clk 0:04:28]} 12. e3 {[%clk 0:04:35.6]} 12...
Nxc3 {[%clk 0:04:21.9]} 13. Rxc3 {[%clk 0:04:33.1]} 13... f6 {[%clk 0:04:20]}
14. Qd2 {[%clk 0:04:30.5]} 14... Qe7 {[%clk 0:04:17.6]} 15. a3 {[%clk
0:04:28.7]} 15... a5 {[%clk 0:04:13.2]} 16. Rfc1 {[%clk 0:04:26]} 16... a4
{[%clk 0:04:09.6]} 17. Ne1 {[%clk 0:04:24.2]} 17... Na5 {[%clk 0:04:06.4]} 18.
Qd1 {[%clk 0:04:17.9]} 18... Nb3 {[%clk 0:04:01.7]} 19. R1c2 {[%clk 0:04:16.7]}
19... Rfc8 {[%clk 0:03:57.8]} 20. Nd3 {[%clk 0:04:15.4]} 20... b6 {[%clk
0:03:51.5]} 21. Rxc8+ {[%clk 0:04:11.6]} 21... Rxc8 {[%clk 0:03:48.9]} 22. Rxc8+
{[%clk 0:04:10]} 22... Bxc8 {[%clk 0:03:47.6]} 23. Qc2 {[%clk 0:04:08]} 23...
Ba6 {[%clk 0:03:41.6]} 24. f5 {[%clk 0:04:05.4]} 24... Bc4 {[%clk 0:03:29.5]}
25. Nf4 {[%clk 0:04:01]} 25... Qd6 {[%clk 0:03:07.9]} 26. Nxe6 {[%clk
0:03:52.8]} 26... b5 {[%clk 0:03:02.3]} 27. Qc3 {[%clk 0:03:49.8]} 27... Kf7
{[%clk 0:02:50.8]} 28. Nf4 {[%clk 0:03:46.9]} 28... g5 {[%clk 0:02:46.7]} 29.
fxg6+ {[%clk 0:03:44.7]} 29... hxg6 {[%clk 0:02:45.4]} 30. Qc2 {[%clk
0:03:44.3]} 30... f5 {[%clk 0:02:35.1]} 31. h4 {[%clk 0:03:42.9]} 31... Nxd4
{[%clk 0:02:31.7]} 32. Qd2 {[%clk 0:03:31.6]} 32... Nb3 {[%clk 0:02:24.9]} 33.
Bxd5+ {[%clk 0:03:27.7]} 33... Bxd5 {[%clk 0:02:06.4]} 34. Qxd5+ {[%clk
0:03:25.6]} 34... Qxd5 {[%clk 0:02:03.9]} 35. Nxd5 {[%clk 0:03:25.3]} 35... Nc5
{[%clk 0:02:00.8]} 36. Nc3 {[%clk 0:03:23.6]} 36... Nd3 {[%clk 0:01:57.7]} 37.
Nd1 {[%clk 0:03:18]} 37... Ke6 {[%clk 0:01:55.6]} 38. Kf1 {[%clk 0:03:16.4]}
38... Kd5 {[%clk 0:01:52.9]} 39. Ke2 {[%clk 0:03:15.1]} 39... Kc4 {[%clk
0:01:51.9]} 40. Kd2 {[%clk 0:03:12.4]} 40... Ne5 {[%clk 0:01:35.5]} 41. Ke2
{[%clk 0:03:11.5]} 41... Kb3 {[%clk 0:01:34.2]} 42. Nc3 {[%clk 0:03:09.8]} 42...
b4 {[%clk 0:01:26.7]} 43. axb4 {[%clk 0:03:08.2]} 43... a3 {[%clk 0:01:25.9]}
44. bxa3 {[%clk 0:03:05.8]} 44... Kxc3 {[%clk 0:01:24.8]} 45. b5 {[%clk
0:03:04.4]} 45... Kc4 {[%clk 0:01:16.6]} 46. b6 {[%clk 0:03:03.6]} 46... Kc5
{[%clk 0:01:13.2]} 47. b7 {[%clk 0:03:02.7]} 47... Nd7 {[%clk 0:01:09.2]} 48.
Kf3 {[%clk 0:03:02.4]} 48... Kc6 {[%clk 0:01:06.3]} 49. Kf4 {[%clk 0:03:02]}
49... Kxb7 {[%clk 0:01:05.1]} 50. Kg5 {[%clk 0:03:01.7]} 50... Ne5 {[%clk
0:01:02.4]} 51. f4 {[%clk 0:02:58.4]} 51... Nf3+ {[%clk 0:01:01.2]} 52. Kxg6
{[%clk 0:02:49.6]} 52... Nxh4+ {[%clk 0:01:00]} 53. Kg5 {[%clk 0:02:45.1]} 53...
Ng2 {[%clk 0:00:58.5]} 54. Kxf5 {[%clk 0:02:42.3]} 54... Nxe3+ {[%clk
0:00:57.2]} 55. Ke4 {[%clk 0:02:41.6]} 55... Ng4 {[%clk 0:00:56]} 56. f5 {[%clk
0:02:39.9]} 56... Kb6 {[%clk 0:00:53.9]} 57. Kf4 {[%clk 0:02:39.5]} 57... Nf6
{[%clk 0:00:52.8]} 58. Ke5 {[%clk 0:02:39]} 58... Nh5 {[%clk 0:00:51.5]} 59. Ke6
{[%clk 0:02:36.6]} 59... Kb5 {[%clk 0:00:50.6]} 60. Kf7 {[%clk 0:02:34.7]} 60...
Ka4 {[%clk 0:00:48.4]} 61. Kg6 {[%clk 0:02:34.3]} 61... Nf4+ {[%clk 0:00:46.5]}
62. Kg7 {[%clk 0:02:31.8]} 62... Nd5 {[%clk 0:00:44.8]} 63. Kf7 {[%clk
0:02:31.1]} 63... Kxa3 {[%clk 0:00:43.9]} 64. Ke6 {[%clk 0:02:30.8]} 64... Nf4+
{[%clk 0:00:42.6]} 65. Ke5 {[%clk 0:02:30.6]} 65... Nh5 {[%clk 0:00:41.7]} 66.
f6 {[%clk 0:02:30.4]} 66... Nxf6 {[%clk 0:00:40.3]} 1/2-1/2

[Event "Live Chess"]
[Site "Chess.com"]
[Date "2024.06.02"]
[Round "-"]
[White "booktrunk"]
[Black "E2E4colchester"]
[Result "1-0"]
[WhiteElo "1499"]
[BlackElo "1369"]
[TimeControl "300"]
[EndTime "4:33:15 PDT"]
[Termination "booktrunk won by checkmate"]

1. d4 {[%clk 0:04:53.6]} 1... d5 {[%clk 0:04:58.6]} 2. Nc3 {[%clk 0:04:52.6]}
2... Nf6 {[%clk 0:04:57.3]} 3. Bf4 {[%clk 0:04:49.4]} 3... e6 {[%clk 0:04:53.2]}
4. Nb5 {[%clk 0:04:47.9]} 4... Bd6 {[%clk 0:04:52.1]} 5. Nxd6+ {[%clk
0:04:46.3]} 5... cxd6 {[%clk 0:04:50.6]} 6. e3 {[%clk 0:04:44.3]} 6... O-O
{[%clk 0:04:46.9]} 7. Nf3 {[%clk 0:04:42.3]} 7... Nc6 {[%clk 0:04:45.3]} 8. Bb5
{[%clk 0:04:40.9]} 8... a6 {[%clk 0:04:42.7]} 9. Ba4 {[%clk 0:04:39.7]} 9... b5
{[%clk 0:04:41.4]} 10. Bb3 {[%clk 0:04:38]} 10... Re8 {[%clk 0:04:36.6]} 11. a4
{[%clk 0:04:36.4]} 11... Bb7 {[%clk 0:04:32.8]} 12. axb5 {[%clk 0:04:34]} 12...
axb5 {[%clk 0:04:30.7]} 13. Rxa8 {[%clk 0:04:32.6]} 13... Qxa8 {[%clk
0:04:29.9]} 14. Bxd6 {[%clk 0:04:30.5]} 14... Qa5+ {[%clk 0:04:03.5]} 15. Qd2
{[%clk 0:04:26]} 15... Qa1+ {[%clk 0:03:58.6]} 16. Qd1 {[%clk 0:04:20.1]} 16...
Qxd1+ {[%clk 0:03:57.1]} 17. Kxd1 {[%clk 0:04:17.4]} 17... Rd8 {[%clk
0:03:55.4]} 18. Bc5 {[%clk 0:04:15.1]} 18... Ne4 {[%clk 0:03:54.1]} 19. Ke2
{[%clk 0:04:08.1]} 19... Nb4 {[%clk 0:03:52.8]} 20. Bb6 {[%clk 0:04:02.6]} 20...
Rc8 {[%clk 0:03:48.1]} 21. c3 {[%clk 0:04:01]} 21... Nc2 {[%clk 0:03:41]} 22.
Bxc2 {[%clk 0:03:58.3]} 22... h6 {[%clk 0:03:35.2]} 23. Bxe4 {[%clk 0:03:54.9]}
23... dxe4 {[%clk 0:03:33.8]} 24. Ne5 {[%clk 0:03:53.8]} 24... b4 {[%clk
0:03:31.5]} 25. Rc1 {[%clk 0:03:51.2]} 25... b3 {[%clk 0:03:26.6]} 26. Ra1
{[%clk 0:03:41.1]} 26... f6 {[%clk 0:03:15.5]} 27. Nd7 {[%clk 0:03:36.8]} 27...
Rc6 {[%clk 0:03:07.2]} 28. Bc5 {[%clk 0:03:25.1]} 28... Kf7 {[%clk 0:03:06.2]}
29. Bb4 {[%clk 0:03:18.5]} 29... Rc7 {[%clk 0:03:04]} 30. Nc5 {[%clk 0:03:16.8]}
30... Bd5 {[%clk 0:02:55.8]} 31. Ra3 {[%clk 0:03:14.6]} 31... Bc4+ {[%clk
0:02:54.3]} 32. Kd2 {[%clk 0:03:11.6]} 32... Kg6 {[%clk 0:02:50]} 33. Nxb3
{[%clk 0:03:09.8]} 33... Bf1 {[%clk 0:02:43.4]} 34. g3 {[%clk 0:03:07.7]} 34...
Bc4 {[%clk 0:02:40.6]} 35. Nc5 {[%clk 0:03:04.5]} 35... e5 {[%clk 0:02:39.1]}
36. dxe5 {[%clk 0:03:01.9]} 36... fxe5 {[%clk 0:02:35.2]} 37. Ke1 {[%clk
0:02:46.2]} 37... Kg5 {[%clk 0:02:34]} 38. Ra1 {[%clk 0:02:44]} 38... Kh5 {[%clk
0:02:30.5]} 39. Rd1 {[%clk 0:02:42]} 39... g6 {[%clk 0:02:25.5]} 40. Rd6 {[%clk
0:02:20.6]} 40... Kg5 {[%clk 0:02:24.2]} 41. Ne6+ {[%clk 0:02:18.5]} 41... Bxe6
{[%clk 0:02:22.5]} 42. Rxe6 {[%clk 0:02:17.3]} 42... Kf5 {[%clk 0:02:21.7]} 43.
Re7 {[%clk 0:02:16]} 43... Rc6 {[%clk 0:02:17.3]} 44. Rf7+ {[%clk 0:02:14.3]}
44... Kg5 {[%clk 0:02:16]} 45. Be7+ {[%clk 0:02:10.3]} 45... Kh5 {[%clk
0:02:13]} 46. h3 {[%clk 0:02:07.6]} 46... Rb6 {[%clk 0:02:11.9]} 47. g4# {[%clk
0:02:05.8]} 1-0

[Event "Live Chess"]
[Site "Chess.com"]
[Date "2024.06.02"]
[Round "-"]
[White "Bradfield133"]
[Black "Harry_Li"]
[Result "0-1"]
[WhiteElo "1842"]
[BlackElo "2164"]
[TimeControl "300"]
[EndTime "4:33:26 PDT"]
[Termination "Harry_Li won on time"]

1. c4 {[%clk 0:04:58.2]} 1... e5 {[%clk 0:04:54.8]} 2. g3 {[%clk 0:04:56.7]}
2... Nf6 {[%clk 0:04:53.8]} 3. Bg2 {[%clk 0:04:55.7]} 3... h6 {[%clk 0:04:52.9]}
4. Nc3 {[%clk 0:04:51.5]} 4... Bb4 {[%clk 0:04:51.9]} 5. Qb3 {[%clk 0:04:48.4]}
5... Bxc3 {[%clk 0:04:37.1]} 6. Qxc3 {[%clk 0:04:46.5]} 6... d6 {[%clk
0:04:24.7]} 7. e3 {[%clk 0:04:37.7]} 7... O-O {[%clk 0:04:23.2]} 8. Ne2 {[%clk
0:04:36.6]} 8... e4 {[%clk 0:04:14.3]} 9. O-O {[%clk 0:04:29]} 9... Nc6 {[%clk
0:04:10.9]} 10. f3 {[%clk 0:04:15.9]} 10... Re8 {[%clk 0:04:07.1]} 11. Nf4
{[%clk 0:04:10.5]} 11... exf3 {[%clk 0:03:56.3]} 12. Bxf3 {[%clk 0:04:07.2]}
12... Ne5 {[%clk 0:03:55.9]} 13. Bg2 {[%clk 0:04:03.3]} 13... c6 {[%clk
0:03:26.8]} 14. d4 {[%clk 0:03:52.7]} 14... Ned7 {[%clk 0:03:21.5]} 15. Bd2
{[%clk 0:03:48]} 15... Qe7 {[%clk 0:03:17]} 16. Rae1 {[%clk 0:03:43.6]} 16...
Ne4 {[%clk 0:03:15.8]} 17. Qc2 {[%clk 0:03:30.7]} 17... Ndf6 {[%clk 0:03:14.2]}
18. Bc1 {[%clk 0:03:24.5]} 18... d5 {[%clk 0:02:58.5]} 19. cxd5 {[%clk
0:03:10.1]} 19... cxd5 {[%clk 0:02:58.4]} 20. Qb3 {[%clk 0:02:58.7]} 20... Qd6
{[%clk 0:02:23.1]} 21. Nd3 {[%clk 0:02:45.2]} 21... b6 {[%clk 0:02:20.6]} 22.
Qb4 {[%clk 0:02:38.8]} 22... Qe6 {[%clk 0:02:10.1]} 23. Nf4 {[%clk 0:02:24.6]}
23... Qc6 {[%clk 0:01:56.9]} 24. Qb3 {[%clk 0:02:01.9]} 24... a5 {[%clk
0:01:47.7]} 25. a4 {[%clk 0:01:49.4]} 25... Ba6 {[%clk 0:01:43.6]} 26. Nd3
{[%clk 0:01:48.2]} 26... Rac8 {[%clk 0:01:26.5]} 27. Rf5 {[%clk 0:01:28]} 27...
Bxd3 {[%clk 0:01:23.8]} 28. Qxd3 {[%clk 0:01:24.9]} 28... g6 {[%clk 0:01:08.8]}
29. Rff1 {[%clk 0:01:15.5]} 29... Qxa4 {[%clk 0:01:07.2]} 30. Qa6 {[%clk
0:01:00.7]} 30... Qc6 {[%clk 0:00:59.1]} 31. Bh3 {[%clk 0:00:45.6]} 31... Ra8
{[%clk 0:00:53.5]} 32. Qe2 {[%clk 0:00:43.6]} 32... Kg7 {[%clk 0:00:50.8]} 33.
Qf3 {[%clk 0:00:37.9]} 33... Ng5 {[%clk 0:00:45.2]} 34. Qg2 {[%clk 0:00:35.8]}
34... Nxh3+ {[%clk 0:00:35.1]} 35. Qxh3 {[%clk 0:00:34.7]} 35... Ne4 {[%clk
0:00:33.2]} 36. Qg2 {[%clk 0:00:29.7]} 36... Rac8 {[%clk 0:00:31.7]} 37. Qf3
{[%clk 0:00:26.5]} 37... Rc7 {[%clk 0:00:25.6]} 38. Re2 {[%clk 0:00:24.4]} 38...
b5 {[%clk 0:00:24.4]} 39. Rg2 {[%clk 0:00:16.6]} 39... b4 {[%clk 0:00:22.7]} 40.
h4 {[%clk 0:00:11.2]} 40... h5 {[%clk 0:00:13.3]} 41. g4 {[%clk 0:00:09.6]}
41... hxg4 {[%clk 0:00:11.9]} 42. Rxg4 {[%clk 0:00:08.6]} 42... Rh8 {[%clk
0:00:10.5]} 43. Rf4 {[%clk 0:00:03.2]} 43... Qe6 {[%clk 0:00:05.9]} 0-1